bitfinex-derivatives/quotes_SOLF0:USTF0_20250623
["timestamp","ask_amount","ask_price","bid_price","bid_amount"]
[1750694991119,12.61662765,132.76,132.68,45.54]
[1750694991320,12.61662765,132.76,132.68,58.15662765]
[1750694991823,45.54,132.77,132.68,58.15662765]
[1750694992021,45.54,132.77,132.7,12.61662765]
[1750694992620,12.61662765,132.76,132.68,58.15662765]
[1750694993008,7.5305,132.74,132.68,58.15662765]
[1750694993211,12.61662765,132.76,132.68,58.15662765]
[1750694993425,12.61662765,132.76,132.69,7.5326]
[1750694994121,12.61662765,132.76,132.68,45.54]
[1750694994421,45.54,132.77,132.68,58.15662765]
[1750694994621,7.53,132.75,132.72,20.14792765]
[1750694995218,12.61662765,132.78,132.71,7.5317]
[1750694995418,12.61662765,132.78,132.7,12.61662765]
[1750694995816,7.5304,132.74,132.71,7.5318]
[1750694996018,5.86825101,132.79,132.72,12.61662765]
[1750694996215,7.5289,132.77,132.74,7.53]
[1750694996420,58.01662765,132.8,132.73,5.0158]
[1750694996918,7.5293,132.76,132.73,5.0158]
[1750694997424,7.5293,132.76,132.73,12.5464]
[1750694997627,7.5298,132.75,132.73,5.0158]
[1750694997924,58.01662765,132.8,132.73,5.0158]
[1750694998530,12.61662765,132.78,132.73,5.0158]
[1750694998722,12.61662765,132.76,132.69,58.01662765]
[1750694998913,58.01662765,132.76,132.69,45.4]
[1750694999228,7.5331,132.69,132.68,5.0158]
[1750694999631,7.5331,132.69,132.68,2.4946]
[1750694999924,7.5331,132.69,132.67,2.4706]
[1750694999925,58.01662765,132.72,132.64,62.76375784]
[1750695000319,7.534,132.68,132.64,62.76375784]
[1750695000514,45.4,132.72,132.64,4.74713019]
[1750695000717,7.5328,132.7,132.64,17.36375784]
[1750695001029,12.61662765,132.72,132.64,62.78375784]
[1750695001330,7.5329,132.7,132.65,12.61662765]
[1750695001721,12.61662765,132.72,132.67,7.5342]
[1750695001926,7.5328,132.7,132.67,7.5342]
[1750695002319,7.5329,132.7,132.67,7.5342]
[1750695002627,45.42,132.73,132.66,12.61662765]
[1750695003721,12.61662765,132.7,132.64,4.74713019]
[1750695004221,7.5351,132.66,132.64,12.28283019]
[1750695004423,7.5351,132.66,132.64,4.74713019]
[1750695004917,7.5351,132.66,132.64,12.28313019]
[1750695005117,45.42,132.69,132.64,17.36375784]
[1750695005514,45.42,132.69,132.65,7.5351]
[1750695005721,7.5346,132.67,132.64,4.74713019]
[1750695005920,45.42,132.69,132.64,4.74713019]
[1750695006318,7.534,132.68,132.64,4.74713019]
[1750695006721,7.534,132.68,132.65,7.5351]
[1750695007333,7.5343,132.67,132.65,7.5351]
[1750695007531,45.42,132.69,132.65,7.5351]
[1750695007830,7.5346,132.67,132.64,12.28283019]
[1750695008329,7.5346,132.67,132.65,7.5354]
[1750695008634,45.42,132.69,132.65,12.61662765]
[1750695008929,45.42,132.72,132.65,12.61662765]
[1750695009538,12.61662765,132.71,132.64,4.74713019]
[1750695009722,7.5347,132.67,132.64,4.74713019]
[1750695009923,7.5347,132.67,132.64,12.28273019]
[1750695010133,12.61662765,132.71,132.64,4.74713019]
[1750695011519,7.5341,132.68,132.64,4.74713019]
[1750695011938,7.5334,132.69,132.65,12.61662765]
[1750695012129,7.5334,132.69,132.66,7.5347]
[1750695012330,7.5334,132.69,132.65,12.61662765]
[1750695012525,7.5338,132.68,132.65,12.61662765]
[1750695012726,45.42,132.72,132.64,17.36375784]
[1750695012927,12.61662765,132.71,132.64,17.36375784]
[1750695013440,12.61662765,132.71,132.64,24.89935784]
[1750695013627,12.61662765,132.71,132.64,12.28273019]
[1750695013823,12.61662765,132.69,132.64,4.74713019]
[1750695014333,7.5351,132.66,132.64,12.28273019]
[1750695014930,7.5354,132.65,132.64,4.74713019]
[1750695015130,8.31870316,132.69,132.64,4.74713019]
[1750695015634,8.31870316,132.69,132.64,12.28283019]
[1750695015939,8.31870316,132.69,132.64,4.74713019]
[1750695016332,12.67684516,132.69,132.64,4.74713019]
[1750695017340,12.67684516,132.69,132.64,12.28313019]
[1750695017544,4.8663,132.71,132.64,17.42397535]
[1750695017840,7.5354,132.65,132.64,4.74713019]
[1750695019735,7.5351,132.66,132.64,4.74713019]
[1750695019946,45.44,132.68,132.64,4.74713019]
[1750695020127,12.67684516,132.67,132.64,4.74713019]
[1750695020329,7.5354,132.65,132.64,4.74713019]
[1750695022546,45.44,132.68,132.64,4.74713019]
[1750695023144,7.5353,132.66,132.64,12.28313019]
[1750695023346,45.44,132.68,132.64,4.74713019]
[1750695024245,657.4692,132.71,132.65,7.5352]
[1750695024246,7.5346,132.67,132.65,7.5352]
[1750695024443,58.03684516,132.7,132.64,4.74713019]
[1750695024941,7.5354,132.65,132.64,4.74713019]
[1750695025545,7.5388,132.59,132.58,4.8299]
[1750695025745,58.03684516,132.6,132.52,12.67684516]
[1750695026046,45.36,132.63,132.55,12.67684516]
[1750695026347,12.67684516,132.62,132.54,12.67684516]
[1750695026643,7.5398,132.58,132.54,12.67684516]
[1750695026846,7.5398,132.58,132.55,7.5408]
[1750695027032,7.5398,132.58,132.54,12.67684516]
[1750695027634,45.36,132.63,132.56,12.67684516]
[1750695028049,7.5377,132.61,132.58,7.5393]
[1750695028244,45.36,132.63,132.58,7.5393]
[1750695028741,7.5386,132.6,132.57,7.5397]
[1750695030150,7.538,132.61,132.58,7.5392]
[1750695030350,45.36,132.63,132.56,58.03684516]
[1750695030742,12.67684516,132.62,132.53,45.36]
[1750695030943,12.67684516,132.61,132.53,58.03684516]
[1750695031146,12.67684516,132.61,132.53,45.36]
[1750695031650,12.67684516,132.61,132.55,7.5408]
[1750695031848,12.67684516,132.61,132.53,45.36]
[1750695032143,12.67684516,132.61,132.54,7.5414]
[1750695032653,12.67684516,132.61,132.53,58.03684516]
[1750695032846,7.5397,132.58,132.53,58.03684516]
[1750695033049,45.36,132.63,132.55,12.67684516]
[1750695033249,58.03684516,132.63,132.56,7.54]
[1750695033748,7.5394,132.59,132.56,7.54]
[1750695034262,58.03684516,132.63,132.55,20.21764516]
[1750695034451,58.03684516,132.63,132.55,12.67684516]
[1750695034752,12.67684516,132.61,132.55,7.5408]
[1750695035443,45.36,132.63,132.54,12.67684516]
[1750695035444,12.67684516,132.62,132.54,12.67684516]
[1750695036353,7.5391,132.59,132.56,15.86721939]
[1750695036548,7.5391,132.59,132.56,8.32711939]
[1750695036948,7.5394,132.58,132.53,45.36]
[1750695037150,8.32711939,132.62,132.55,8.32711939]
[1750695037547,8.32711939,132.62,132.55,15.86811939]
[1750695037949,8.32711939,132.62,132.55,8.32711939]
[1750695038158,45.36,132.63,132.57,8.32711939]
[1750695038352,53.68711939,132.63,132.57,8.32711939]
[1750695038558,7.5403,132.57,132.54,7.5414]
[1750695038747,7.5403,132.57,132.54,8.32711939]
[1750695039054,7.5403,132.57,132.54,15.86841939]
[1750695039442,7.5406,132.56,132.54,15.86841939]
[1750695039646,8.32711939,132.61,132.54,15.86841939]
[1750695039847,7.5401,132.57,132.55,7.541]
[1750695040047,7.5401,132.57,132.54,8.32711939]
[1750695040248,7.5401,132.57,132.54,15.86841939]
[1750695040453,8.32711939,132.61,132.54,15.86841939]
[1750695040655,8.32711939,132.61,132.54,7.5413]
[1750695040954,8.32711939,132.61,132.54,15.86841939]
[1750695041150,8.32711939,132.59,132.53,53.68711939]
[1750695041355,53.70711939,132.59,132.53,53.68711939]
[1750695041556,53.70711939,132.59,132.53,61.22931939]
[1750695041759,45.38,132.59,132.53,52.9022]
[1750695041958,45.38,132.59,132.53,61.22931939]
[1750695041959,53.70711939,132.59,132.53,61.22931939]
[1750695042157,7.5409,132.56,132.53,61.22931939]
[1750695042357,7.5409,132.56,132.54,7.5416]
[1750695042559,45.38,132.59,132.55,8.32711939]
[1750695042958,45.38,132.62,132.55,8.32711939]
[1750695043159,53.70711939,132.62,132.55,8.32711939]
[1750695043359,53.70711939,132.62,132.57,7.5396]
[1750695043558,53.70711939,132.62,132.56,2.3796]
[1750695043963,45.38,132.62,132.56,9.9198]
[1750695044162,53.70711939,132.62,132.56,2.3796]
[1750695044462,7.5391,132.59,132.56,10.70671939]
[1750695044661,53.70711939,132.62,132.57,7.5397]
[1750695044963,53.70711939,132.62,132.56,10.70671939]
[1750695045152,53.70711939,132.62,132.56,18.24701939]
[1750695045354,7.5393,132.59,132.56,18.24701939]
[1750695045762,53.70711939,132.62,132.56,9.9199]
[1750695046064,7.5394,132.58,132.56,9.9199]
[1750695046260,8.32711939,132.6,132.53,45.36]
[1750695046458,8.32711939,132.6,132.53,53.68711939]
[1750695046763,8.32711939,132.6,132.53,8.32711939]
[1750695047160,8.32711939,132.6,132.55,7.5408]
[1750695047353,8.32711939,132.6,132.53,8.32711939]
[1750695047559,8.32711939,132.6,132.52,45.38]
[1750695047759,8.32711939,132.6,132.53,8.32711939]
[1750695048065,7.5409,132.56,132.53,8.32711939]
[1750695048267,8.32711939,132.6,132.53,8.32711939]
[1750695048462,45.38,132.62,132.51,2.419]
[1750695048665,8.32711939,132.59,132.53,8.32711939]
[1750695049274,8.32711939,132.6,132.53,8.32711939]
[1750695049468,8.32711939,132.6,132.51,2.419]
[1750695049670,8.32711939,132.6,132.54,8.32711939]
[1750695049855,45.38,132.62,132.54,8.32711939]
[1750695050167,45.38,132.62,132.53,45.38]
[1750695050467,7.5389,132.59,132.56,8.32711939]
[1750695050664,45.38,132.62,132.56,8.32711939]
[1750695050862,45.38,132.62,132.53,45.38]
[1750695050863,7.5405,132.56,132.53,53.70711939]
[1750695051260,8.32711939,132.59,132.53,53.70711939]
[1750695051765,8.32711939,132.61,132.53,53.70711939]
[1750695051963,7.5403,132.57,132.54,7.5414]
[1750695052657,7.5407,132.56,132.53,65.61478266]
[1750695052863,12.69278266,132.61,132.53,65.61478266]
[1750695053758,7.541,132.56,132.53,65.61478266]
[1750695054061,12.69278266,132.61,132.54,7.5417]
[1750695054266,7.5407,132.56,132.54,7.5417]
[1750695054458,7.5407,132.56,132.53,52.9219]
[1750695054957,7.5403,132.57,132.54,7.5413]
[1750695055163,12.69278266,132.61,132.54,7.5413]
[1750695055365,7.5405,132.57,132.54,7.5413]
[1750695055872,7.5405,132.57,132.55,7.541]
[1750695056465,7.5397,132.58,132.56,7.5405]
[1750695056663,58.07278266,132.62,132.55,15.23168266]
[1750695057166,7.5399,132.58,132.55,22.77248266]
[1750695057870,7.5401,132.57,132.55,2.5389]
[1750695058970,7.5401,132.57,132.55,10.0799]
[1750695059467,7.5397,132.58,132.55,2.5389]
[1750695060168,7.5397,132.58,132.55,10.0797]
[1750695060370,7.54,132.57,132.55,10.0797]
[1750695060572,58.07278266,132.62,132.55,15.23168266]
[1750695060773,58.07278266,132.62,132.55,22.77258266]
[1750695060972,58.07278266,132.62,132.55,10.0798]
[1750695061667,58.07278266,132.62,132.56,7.5405]
[1750695061860,58.07278266,132.62,132.55,2.5389]
[1750695062061,58.07278266,132.62,132.56,7.5403]
[1750695062468,7.5397,132.58,132.56,7.5403]
[1750695062771,7.5397,132.58,132.55,10.0797]
[1750695063069,7.5397,132.58,132.55,2.5389]
[1750695063475,7.5397,132.58,132.56,7.5402]
[1750695064277,7.5397,132.58,132.55,10.0797]
[1750695064574,7.5397,132.58,132.55,2.5389]
[1750695064775,45.38,132.62,132.58,7.5391]
[1750695064982,45.38,132.62,132.55,2.5389]
[1750695064983,45.38,132.62,132.56,15.13648266]
[1750695065465,7.5386,132.6,132.56,15.13648266]
[1750695065666,45.38,132.62,132.56,15.13648266]
[1750695065970,7.5386,132.6,132.57,7.5395]
[1750695066669,7.5386,132.6,132.58,7.5393]
[1750695067474,58.07278266,132.62,132.56,4.9793]
[1750695068063,7.54,132.57,132.56,2.5356]
[1750695068368,7.54,132.57,132.55,10.0796]
[1750695069077,7.5397,132.58,132.56,7.5405]
[1750695069469,58.07278266,132.62,132.55,2.5389]
[1750695069668,7.5403,132.57,132.55,10.0798]
[1750695070568,58.07278266,132.62,132.55,2.5389]
[1750695070971,7.5391,132.59,132.56,7.54]
[1750695071164,58.07278266,132.62,132.55,2.5389]
[1750695071676,7.5391,132.59,132.57,7.5399]
[1750695072177,58.07278266,132.62,132.56,7.5402]
[1750695072473,58.07278266,132.62,132.55,2.5389]
[1750695072474,53.70775419,132.62,132.55,10.86665419]
[1750695072675,7.5401,132.57,132.55,18.40745419]
[1750695073376,7.5401,132.57,132.53,203.96]
[1750695073377,8.32775419,132.6,132.53,53.70775419]
[1750695073872,8.32775419,132.6,132.54,7.5414]
[1750695074077,8.32775419,132.6,132.54,15.86915419]
[1750695074271,5.92928099,132.61,132.53,45.38]
[1750695074478,8.32775419,132.59,132.53,53.70775419]
[1750695074774,7.5417,132.54,132.53,45.38]
[1750695074968,45.32,132.58,132.49,14.02218938]
[1750695075175,45.32,132.58,132.49,8.32775419]
[1750695075372,8.32775419,132.57,132.49,8.32775419]
[1750695075764,7.542,132.54,132.5,7.5434]
[1750695075977,7.542,132.54,132.49,8.32775419]
[1750695076167,8.32775419,132.57,132.47,66.79748938]
[1750695076574,8.32775419,132.57,132.5,8.32775419]
[1750695076970,7.542,132.54,132.51,7.5431]
[1750695077165,45.32,132.54,132.46,15.33524828]
[1750695077368,8.32775419,132.53,132.46,8.32775419]
[1750695077872,45.32,132.57,132.5,8.32775419]
[1750695078078,7.5421,132.54,132.51,7.5431]
[1750695078777,7.5421,132.54,132.52,7.5425]
[1750695078978,45.32,132.57,132.5,53.64775419]
[1750695079372,8.32775419,132.56,132.5,53.64775419]
[1750695079776,8.32775419,132.56,132.51,7.5431]
[1750695079983,7.5419,132.54,132.5,45.32]
[1750695080181,8.32775419,132.56,132.5,45.32]
[1750695080783,7.5414,132.55,132.52,7.5426]
[1750695081282,8.32775419,132.56,132.52,7.5426]
[1750695081483,8.32775419,132.56,132.51,7.5431]
[1750695081781,7.5427,132.53,132.5,45.32]
[1750695081981,8.32775419,132.55,132.51,7.5433]
[1750695082374,7.5422,132.54,132.5,45.32]
[1750695082776,45.32,132.57,132.5,53.64775419]
[1750695082777,53.64775419,132.57,132.5,53.64775419]
[1750695082978,7.5418,132.54,132.5,53.64775419]
[1750695083674,7.5414,132.55,132.52,7.5425]
[1750695084171,7.542,132.54,132.52,7.5425]
[1750695084376,7.542,132.54,132.51,7.5431]
[1750695084885,7.5423,132.53,132.51,7.5431]
[1750695085191,45.32,132.57,132.52,7.5428]
[1750695085477,53.64775419,132.57,132.5,45.32]
[1750695085879,7.5416,132.55,132.52,7.5425]
[1750695086077,53.64775419,132.57,132.5,45.32]
[1750695086282,8.32775419,132.55,132.5,45.32]
[1750695086475,45.32,132.57,132.5,45.32]
[1750695086683,8.32775419,132.56,132.5,45.32]
[1750695086877,7.5414,132.55,132.51,8.32775419]
[1750695087077,8.32775419,132.57,132.51,8.32775419]
[1750695087385,8.32775419,132.58,132.53,8.32775419]
[1750695087678,45.24,132.6,132.55,8.32775419]
[1750695087876,8.32775419,132.62,132.55,8.32775419]
[1750695088384,8.32775419,132.62,132.56,7.5405]
[1750695089189,8.32775419,132.62,132.55,15.86855419]
[1750695089685,7.5399,132.58,132.55,15.86855419]
[1750695090082,14.22937661,132.62,132.55,15.86855419]
[1750695090280,8.32775419,132.58,132.54,45.24]
[1750695090788,7.5411,132.55,132.54,45.24]
[1750695092077,8.32775419,132.59,132.54,8.32775419]
[1750695092281,8.32775419,132.59,132.53,8.32775419]
[1750695093287,7.5402,132.57,132.55,7.541]
[1750695093490,5.91254025,132.62,132.55,8.32775419]
[1750695093687,704.88775419,132.63,132.57,8.32775419]
[1750695093884,8.32775419,132.63,132.57,8.32775419]
[1750695094079,8.32775419,132.61,132.56,45.24]
[1750695094485,7.5402,132.57,132.54,45.24]
[1750695094790,8.32775419,132.6,132.54,45.24]
[1750695095477,14.32337506,132.6,132.54,45.24]
[1750695095683,8.32775419,132.58,132.51,15.52265419]
[1750695095888,45.24,132.58,132.51,4.8757]
[1750695096085,45.24,132.58,132.51,13.20345419]
[1750695096288,53.56775419,132.58,132.51,13.20345419]
[1750695096491,53.56775419,132.58,132.52,7.5425]
[1750695096891,7.5415,132.55,132.52,7.5425]
[1750695097191,7.5415,132.55,132.53,7.5419]
[1750695097593,7.5407,132.56,132.54,7.5417]
[1750695097792,8.32775419,132.56,132.51,4.8757]
[1750695097990,8.32775419,132.56,132.5,696.76]
[1750695098186,8.32775419,132.54,132.5,45.24]
[1750695098788,68.64695419,132.58,132.5,45.24]
[1750695099093,8.32775419,132.54,132.48,55.2885]
[1750695099290,68.64695419,132.58,132.48,55.2885]
[1750695099291,68.64695419,132.58,132.49,7.5442]
[1750695099490,8.32775419,132.54,132.49,7.5442]
[1750695099994,7.5437,132.51,132.48,47.7437]
[1750695100896,7.5437,132.51,132.49,7.5445]
[1750695101192,7.544,132.5,132.48,47.7437]
[1750695101591,8.32775419,132.54,132.48,55.2885]
[1750695101797,8.32775419,132.5,132.43,665.48218938]
[1750695102094,8.32775419,132.5,132.44,53.56775419]
[1750695102590,45.24,132.53,132.46,8.32775419]
[1750695102791,53.56775419,132.53,132.46,8.32775419]
[1750695103093,53.56775419,132.53,132.46,15.87365419]
[1750695103289,7.5448,132.49,132.46,15.87365419]
[1750695103885,53.56775419,132.53,132.46,8.32775419]
[1750695104491,53.56775419,132.53,132.45,8.32775419]
[1750695104492,7.5449,132.49,132.45,8.32775419]
[1750695104692,53.56775419,132.53,132.44,45.24]
[1750695104896,8.32775419,132.48,132.42,4.80232938]
[1750695105194,651.54,132.55,132.42,4.80232938]
[1750695105195,8.32775419,132.46,132.42,4.80232938]
[1750695105494,7.5473,132.45,132.42,4.80232938]
[1750695105691,8.32775419,132.47,132.42,4.80232938]
[1750695105896,7.5477,132.44,132.42,4.80232938]
[1750695106291,8.32775419,132.47,132.42,4.80232938]
[1750695106491,45.26,132.48,132.42,4.80232938]
[1750695106797,8.32775419,132.47,132.42,4.80232938]
[1750695107290,15.87565419,132.43,132.42,2.938e-05]
[1750695107488,61.13565419,132.43,132.42,2.938e-05]
[1750695108700,52.8079,132.43,132.42,2.938e-05]
[1750695108890,7.5479,132.43,132.42,2.938e-05]
[1750695109091,7.5477,132.44,132.42,2.938e-05]
[1750695109397,45.26,132.46,132.42,2.938e-05]
[1750695109699,7.5479,132.43,132.42,2.938e-05]
[1750695110190,15.87565419,132.43,132.42,2.938e-05]
[1750695110396,7.5479,132.43,132.42,2.938e-05]
[1750695111496,15.87565419,132.43,132.42,2.938e-05]
[1750695113189,7.5479,132.43,132.42,2.938e-05]
[1750695113390,15.87565419,132.43,132.42,2.938e-05]
[1750695113692,7.5479,132.43,132.42,2.938e-05]
[1750695114892,7.5477,132.44,132.42,2.938e-05]
[1750695115193,45.16,132.47,132.42,2.938e-05]
[1750695115388,53.48775419,132.48,132.42,7.54812938]
[1750695115698,53.48775419,132.48,132.42,2.938e-05]
[1750695115885,7.5471,132.45,132.42,2.938e-05]
[1750695116083,53.48775419,132.48,132.42,2.938e-05]
[1750695116487,53.48775419,132.48,132.43,8.32775419]
[1750695116488,7.546,132.47,132.43,8.32775419]
[1750695116700,45.16,132.48,132.43,8.32775419]
[1750695116701,8.32775419,132.5,132.44,4.8227]
[1750695116900,7.5455,132.48,132.45,7.5464]
[1750695117197,8.32775419,132.5,132.45,7.5464]
[1750695117589,7.5459,132.47,132.44,12.3698]
[1750695117791,8.32775419,132.5,132.44,4.8227]
[1750695118094,45.16,132.51,132.44,4.8227]
[1750695118301,8.32775419,132.49,132.44,4.8227]
[1750695118902,7.5466,132.46,132.44,4.8227]
[1750695119102,8.32775419,132.49,132.44,4.8227]
[1750695119494,7.5468,132.46,132.44,4.8227]
[1750695119793,8.32775419,132.47,132.42,45.16002938]
[1750695119997,8.32775419,132.47,132.42,2.938e-05]
[1750695120197,7.5479,132.43,132.42,2.938e-05]
[1750695121596,52.7079,132.43,132.42,2.938e-05]
[1750695122303,65.4353137,132.43,132.42,2.938e-05]
[1750695123204,65.4353137,132.43,132.34,4.9662]
[1750695123504,12.7274137,132.41,132.34,14.8693]
[1750695123710,12.7274137,132.41,132.34,7.3168]
[1750695124210,7.5521,132.36,132.34,7.3168]
[1750695124910,7.5516,132.37,132.34,14.8696]
[1750695125304,45.16,132.43,132.35,12.7274137]
[1750695125603,7.5514,132.37,132.34,20.0442137]
[1750695126012,7.5514,132.37,132.34,14.8696]
[1750695126701,7.5522,132.36,132.34,7.3168]
[1750695127213,45.18,132.39,132.34,4.8059]
[1750695127405,7.5523,132.36,132.34,4.8059]
[1750695128010,7.5523,132.36,132.34,12.3589]
[1750695128210,7.5516,132.37,132.34,12.3589]
[1750695129211,7.5519,132.36,132.34,12.3589]
[1750695129411,7.5519,132.36,132.34,4.8059]
[1750695130106,7.5519,132.36,132.34,12.359]
[1750695130307,7.5525,132.35,132.32,12.7274137]
[1750695130708,45.18,132.39,132.31,47.5029]
[1750695130907,12.7274137,132.37,132.31,2.3229]
[1750695131605,45.18,132.39,132.31,2.3229]
[1750695131606,12.7274137,132.38,132.31,9.8772]
[1750695131814,7.5533,132.34,132.31,9.8772]
[1750695132008,12.7274137,132.34,132.27,12.7274137]
[1750695132216,12.7274137,132.34,132.26,12.7274137]
[1750695132411,7.5557,132.3,132.26,12.7274137]
[1750695132611,7.5557,132.3,132.27,7.5568]
[1750695132814,7.5545,132.32,132.26,12.7274137]
[1750695133014,45.18,132.35,132.28,12.7274137]
[1750695134009,45.18,132.35,132.31,12.7274137]
[1750695134212,45.18,132.38,132.31,12.7274137]
[1750695134914,45.18,132.38,132.32,7.2954]
[1750695135111,7.5499,132.4,132.33,12.7274137]
[1750695135318,57.9074137,132.41,132.37,7.5513]
[1750695135515,45.18,132.41,132.35,12.7274137]
[1750695136114,45.18,132.43,132.37,12.7274137]
[1750695136421,45.18,132.43,132.4,7.5496]
[1750695136721,52.7282,132.43,132.4,7.5496]
[1750695137217,7.5486,132.42,132.4,7.5496]
[1750695137918,52.7281,132.43,132.4,7.5496]
[1750695138114,52.7281,132.43,132.38,12.7274137]
[1750695138115,45.18,132.43,132.39,7.5499]
[1750695138415,7.5488,132.42,132.39,7.5499]
[1750695138818,52.7282,132.43,132.4,7.5495]
[1750695139012,45.18,132.43,132.37,12.7274137]
[1750695139214,45.18,132.46,132.41,12.7274137]
[1750695140010,652.34,132.48,132.41,12.7274137]
[1750695140217,1.7798,132.53,132.43,12.7274137]
[1750695140415,47.4783,132.51,132.43,12.7274137]
[1750695140620,7.5448,132.49,132.46,7.5458]
[1750695141220,7.5448,132.49,132.44,20.2742137]
[1750695141417,7.5448,132.49,132.44,12.7274137]
[1750695144023,21.78849069,132.52,132.39,12.7274137]
[1750695144226,12.7274137,132.5,132.38,4.9683]
[1750695144420,7.5479,132.43,132.42,12.7274137]
[1750695144629,45.18,132.47,132.42,12.7274137]
[1750695145024,45.02,132.5,132.44,12.7274137]
[1750695145921,7.5468,132.45,132.44,12.7274137]
[1750695146121,45.02,132.5,132.41,10.0254]
[1750695146316,57.7474137,132.5,132.41,15.2040137]
[1750695146716,57.7474137,132.5,132.41,22.7528137]
[1750695146924,7.5477,132.44,132.42,12.7274137]
[1750695147121,45.02,132.5,132.42,12.7274137]
[1750695147326,50.91637983,132.5,132.42,12.7274137]
[1750695147729,50.91637983,132.5,132.41,10.0252]
[1750695147934,50.91637983,132.5,132.42,12.7274137]
[1750695148134,7.5466,132.46,132.42,12.7274137]
[1750695148336,12.7274137,132.49,132.42,12.7274137]
[1750695149037,12.7274137,132.47,132.38,17.6957137]
[1750695149226,45.02,132.46,132.38,17.6957137]
[1750695149537,7.5489,132.42,132.38,17.6957137]
[1750695149942,7.5493,132.41,132.38,25.2462137]
[1750695150140,45.02,132.46,132.38,17.6957137]
[1750695150540,7.5494,132.41,132.38,25.2464137]
[1750695151336,7.55,132.4,132.38,17.6957137]
[1750695151636,12.7274137,132.45,132.38,17.6957137]
[1750695151637,12.7274137,132.45,132.38,4.9683]
[1750695152033,18.63066768,132.45,132.38,4.9683]
[1750695152434,7.5494,132.41,132.38,4.9683]
[1750695152635,18.6293193,132.45,132.38,4.9683]
[1750695152836,12.7274137,132.43,132.36,45.02]
[1750695153041,45.02,132.42,132.36,45.02]
[1750695153236,12.7274137,132.41,132.34,20.2802137]
[1750695153633,12.7274137,132.41,132.33,52.4639]
[1750695153836,12.7274137,132.41,132.34,7.5528]
[1750695154635,45.02,132.42,132.33,4.926]
[1750695154843,2.3811,132.4,132.25,2.3989]
[1750695155036,670.7656207,132.39,132.25,2.3989]
[1750695155237,12.7274137,132.33,132.25,2.3989]
[1750695155448,12.7274137,132.31,132.24,4.8158]
[1750695155644,45.02,132.3,132.24,4.8158]
[1750695155840,45.02,132.3,132.2,4.85752857]
[1750695156036,57.7474137,132.3,132.2,4.85752857]
[1750695156245,57.7474137,132.3,132.22,12.7274137]
[1750695156448,57.7474137,132.3,132.21,12.7274137]
[1750695156648,57.7474137,132.3,132.21,20.2875137]
[1750695156837,7.5576,132.27,132.2,4.85752857]
[1750695157038,12.7274137,132.29,132.2,4.85752857]
[1750695157234,45.02,132.3,132.22,12.7274137]
[1750695157435,12.7274137,132.33,132.22,50.64]
[1750695157640,50.64,132.32,132.25,12.7274137]
[1750695157843,7.5559,132.3,132.25,20.2851137]
[1750695158045,50.64,132.32,132.25,12.7274137]
[1750695158347,12.7274137,132.35,132.22,50.64]
[1750695158348,12.7274137,132.34,132.26,12.7274137]
[1750695158543,12.7274137,132.32,132.24,12.7274137]
[1750695158848,50.64,132.35,132.22,50.64]
[1750695159051,12.7274137,132.31,132.23,12.7274137]
[1750695159345,50.64,132.3,132.22,50.64]
[1750695159552,12.7274137,132.29,132.22,58.1999]
[1750695160050,7.5575,132.27,132.22,58.1999]
[1750695160252,7.5575,132.27,132.23,7.5593]
[1750695160447,7.5575,132.27,132.22,50.64]
[1750695160448,7.5576,132.26,132.22,63.3674137]
[1750695160650,12.7274137,132.29,132.21,7.5605]
[1750695160842,12.7274137,132.29,132.2,4.85752857]
[1750695161038,50.64,132.3,132.2,4.85752857]
[1750695161239,4.3027,132.38,132.26,7.5576]
[1750695161437,4.3027,132.38,132.25,12.7274137]
[1750695161438,12.7274137,132.32,132.24,50.64]
[1750695161644,12.7274137,132.3,132.22,7.5596]
[1750695161842,50.64,132.3,132.22,7.5596]
[1750695162043,63.3674137,132.3,132.21,50.64]
[1750695162247,50.64,132.3,132.22,12.7274137]
[1750695162444,50.64,132.3,132.21,50.64]
[1750695162645,12.7274137,132.29,132.21,50.64]
[1750695162849,12.7274137,132.28,132.21,63.3674137]
[1750695163150,50.64,132.3,132.21,63.3674137]